Workbook

Sheet 工作表1
A1: 2778 | B1: 2507.125 | C1: 3 | D1: =AVERAGE(A:A) -> 2092.019802 | E1: =AVERAGE(B:B) -> 1748.627475 | F1: =AVERAGE(C:C) -> 3.171460815
A2: 2038 | B2: 1449.25 | C2: 2.828427125 | D2: 6293.346535 | E2: 3973.69245
A3: 534 | B3: 453 | C3: 3 | D3: 2383.287129 | E3: 1960.392327 | F3: 1960.392327
A4: 38 | B4: 24.25 | C4: 3
A5: 26 | B5: 16.75 | C5: 3
A6: 1606 | B6: 1461.375 | C6: 3.31662479
A7: 874 | B7: 903.125 | C7: 3.31662479
A8: 3502 | B8: 2999.25 | C8: 3.16227766
A9: 1918 | B9: 1267.25 | C9: 3
A10: 50 | B10: 32.25 | C10: 3
A11: 6970 | B11: 5718 | C11: 2.645751311
A12: 5730 | B12: 4780.125 | C12: 3.16227766
A13: 6290 | B13: 5215.625 | C13: 3.31662479
A14: 6 | B14: 1.5 | C14: 3.31662479
A15: 6 | B15: 1.5 | C15: 3.31662479
A16: 11178 | B16: 9098.625 | C16: 3
A17: 12650 | B17: 10264.625 | C17: 3.16227766
A18: 10910 | B18: 8818.375 | C18: 3.31662479
A19: 122 | B19: 79.5 | C19: 3.31662479
A20: 10006 | B20: 8158 | C20: 3.464101615
A21: 6 | B21: 5 | C21: 3.464101615
A22: 6 | B22: 5 | C22: 3.464101615
A23: 13850 | B23: 11079 | C23: 3.16227766
A24: 6 | B24: 5 | C24: 3.16227766
A25: 6 | B25: 5 | C25: 3.16227766
A26: 6 | B26: 5 | C26: 3.16227766
A27: 6 | B27: 5 | C27: 3.16227766
A28: 6 | B28: 5 | C28: 3.16227766
A29: 6 | B29: 5 | C29: 3.16227766
A30: 6 | B30: 5 | C30: 3.16227766
A31: 6 | B31: 5 | C31: 3.16227766
A32: 6 | B32: 5 | C32: 3.16227766
A33: 6 | B33: 5 | C33: 3.16227766
A34: 6 | B34: 5 | C34: 3.16227766
A35: 6 | B35: 5 | C35: 3.16227766
A36: 6 | B36: 5 | C36: 3.16227766
A37: 6354 | B37: 5358 | C37: 3.464101615
A38: 10 | B38: 11.25 | C38: 3.31662479
A39: 6 | B39: 5 | C39: 3.31662479
A40: 4210 | B40: 3726.25 | C40: 3.31662479
A41: 2462 | B41: 2252.625 | C41: 3.31662479
A42: 94 | B42: 56.625 | C42: 3.31662479
A43: 98 | B43: 59.375 | C43: 3.31662479
A44: 838 | B44: 942 | C44: 3.31662479
A45: 118 | B45: 72.25 | C45: 3.31662479
A46: 2382 | B46: 2160.375 | C46: 3.16227766
A47: 2414 | B47: 2187.75 | C47: 3
A48: 1970 | B48: 1384.25 | C48: 2.828427125
A49: 2062 | B49: 1915.125 | C49: 3.16227766
A50: 982 | B50: 961 | C50: 3
A51: 1294 | B51: 1287.25 | C51: 3.31662479
A52: 2666 | B52: 2290.75 | C52: 3.16227766
A53: 66 | B53: 43.25 | C53: 3.16227766
A54: 2410 | B54: 1862.375 | C54: 3.464101615
A55: 618 | B55: 580.125 | C55: 3.464101615
A56: 3566 | B56: 3103.125 | C56: 3
A57: 6450 | B57: 5220.5 | C57: 2.828427125
A58: 6 | B58: 1.5 | C58: 2.828427125
A59: 6 | B59: 1.5 | C59: 2.828427125
A60: 5222 | B60: 4434.875 | C60: 3
A61: 6 | B61: 1.5 | C61: 3
A62: 6 | B62: 1.5 | C62: 3
A63: 4526 | B63: 3863.125 | C63: 3.31662479
A64: 11442 | B64: 9248.625 | C64: 2.828427125
A65: 6 | B65: 1.5 | C65: 2.828427125
A66: 6 | B66: 1.5 | C66: 2.828427125
A67: 6894 | B67: 5729.5 | C67: 3.31662479
A68: 9278 | B68: 7635.125 | C68: 3.31662479
A69: 5978 | B69: 5069.125 | C69: 3.16227766
A70: 130 | B70: 87.625 | C70: 3.16227766
A71: 7366 | B71: 6104.625 | C71: 3.16227766
A72: 5838 | B72: 4868.25 | C72: 3.464101615
A73: 10 | B73: 7.25 | C73: 3.464101615
A74: 9398 | B74: 7760.25 | C74: 2.645751311
A75: 4382 | B75: 3658.5 | C75: 3.31662479
A76: 22 | B76: 14.25 | C76: 3.31662479
A77: 3050 | B77: 2760 | C77: 3.31662479
A78: 5658 | B78: 4709.375 | C78: 3.16227766
A79: 4450 | B79: 3721.125 | C79: 3.31662479
A80: 70 | B80: 43.125 | C80: 3.31662479
A81: 4038 | B81: 3457.25 | C81: 3.464101615
A82: 62 | B82: 29 | C82: 3.464101615
A83: 5630 | B83: 4639.625 | C83: 3.464101615
A84: 3690 | B84: 3316.625 | C84: 3.16227766
A85: 2698 | B85: 2282.5 | C85: 3
A86: 5182 | B86: 4360.5 | C86: 3
A87: 4190 | B87: 3259.125 | C87: 2.828427125
A88: 6 | B88: 1.5 | C88: 2.828427125
A89: 6690 | B89: 4798.625 | C89: 3.16227766
A90: 6 | B90: 5 | C90: 3.16227766
A91: 2574 | B91: 2217.375 | C91: 2.645751311
A92: 142 | B92: 184.875 | C92: 3
A93: 2798 | B93: 2534.25 | C93: 3
A94: 2298 | B94: 1628.25 | C94: 2.828427125
A95: 1166 | B95: 1145.25 | C95: 3.16227766
A96: 2366 | B96: 2165.75 | C96: 3
A97: 1590 | B97: 1111 | C97: 2.828427125
A98: 42 | B98: 26.75 | C98: 2.828427125
A99: 46 | B99: 27.5 | C99: 3
A100: 6 | B100: 1.5 | C100: 3.16227766
A101: 22 | B101: 14.25 | C101: 3.16227766
A102: 22 | B102: 14.25 | C102: 3.31662479
A103: 2354 | B103: 2167.875 | C103: 3.16227766
A104: 2442 | B104: 1689.5 | C104: 3
A105: 6 | B105: 1.5 | C105: 3
A106: 3770 | B106: 3024.125 | C106: 3.16227766
A107: 78 | B107: 43.5 | C107: 3.16227766
A108: 1334 | B108: 1181.875 | C108: 3.605551275
A109: 794 | B109: 744.25 | C109: 3.16227766
A110: 1282 | B110: 1198.625 | C110: 3.31662479
A111: 2650 | B111: 2069.875 | C111: 3.16227766
A112: 1514 | B112: 1430.5 | C112: 3.31662479
A113: 998 | B113: 974.875 | C113: 3.16227766
A114: 34 | B114: 19.875 | C114: 3.16227766
A115: 4410 | B115: 3657.125 | C115: 3.31662479
A116: 5582 | B116: 4765.25 | C116: 3
A117: 238 | B117: 136 | C117: 3
A118: 186 | B118: 99.875 | C118: 3
A119: 9046 | B119: 7504.25 | C119: 2.645751311
A120: 6138 | B120: 5187.25 | C120: 3
A121: 30 | B121: 43.5 | C121: 3
A122: 11750 | B122: 9665.125 | C122: 2.236067977
A123: 9294 | B123: 7647.5 | C123: 3.16227766
A124: 142 | B124: 96.625 | C124: 3
A125: 9934 | B125: 8249.5 | C125: 3.16227766
A126: 6 | B126: 1.5 | C126: 3.16227766
A127: 6 | B127: 1.5 | C127: 3.16227766
A128: 6866 | B128: 5779.125 | C128: 3.464101615
A129: 54 | B129: 33 | C129: 3.464101615
A130: 3250 | B130: 2944.75 | C130: 3.464101615
A131: 210 | B131: 137.625 | C131: 3.464101615
A132: 3862 | B132: 3428.125 | C132: 3.31662479
A133: 3842 | B133: 3406 | C133: 3.16227766
A134: 4706 | B134: 4098.375 | C134: 3.16227766
A135: 6 | B135: 5 | C135: 3.16227766
A136: 6 | B136: 5 | C136: 3.16227766
A137: 8338 | B137: 6950.875 | C137: 3.16227766
A138: 14 | B138: 9.5 | C138: 3.16227766
A139: 3582 | B139: 3211.125 | C139: 3.16227766
A140: 14 | B140: 6 | C140: 3.16227766
A141: 62 | B141: 40.5 | C141: 3.16227766
A142: 1550 | B142: 1408.25 | C142: 3.31662479
A143: 2322 | B143: 2109.625 | C143: 3.464101615
A144: 106 | B144: 120 | C144: 3
A145: 2570 | B145: 2351.625 | C145: 3.16227766
A146: 2078 | B146: 1597.625 | C146: 3.16227766
A147: 26 | B147: 14.875 | C147: 3.16227766
A148: 14 | B148: 9.5 | C148: 3.16227766
A149: 42 | B149: 24.875 | C149: 3.31662479
A150: 66 | B150: 43.25 | C150: 3.464101615
A151: 130 | B151: 81.25 | C151: 3.464101615
A152: 2474 | B152: 2249.5 | C152: 3
A153: 2838 | B153: 1837.875 | C153: 2.828427125
A154: 6 | B154: 3.375 | C154: 3
A155: 2230 | B155: 2039.75 | C155: 3.16227766
A156: 2314 | B156: 2117.375 | C156: 3
A157: 1646 | B157: 947.75 | C157: 3
A158: 174 | B158: 88.375 | C158: 3
A159: 22 | B159: 14.25 | C159: 3
A160: 74 | B160: 48.75 | C160: 3
A161: 70 | B161: 40 | C161: 3
A162: 170 | B162: 115.25 | C162: 3.16227766
A163: 1930 | B163: 1798.5 | C163: 3.31662479
A164: 194 | B164: 168 | C164: 3.16227766
A165: 54 | B165: 40 | C165: 3.16227766
A166: 1678 | B166: 1507.75 | C166: 3.16227766
A167: 38 | B167: 22.375 | C167: 3.16227766
A168: 730 | B168: 849.125 | C168: 3.31662479
A169: 2222 | B169: 2027.625 | C169: 3
A170: 2414 | B170: 1498.875 | C170: 3
A171: 14 | B171: 9.5 | C171: 3
A172: 314 | B172: 370.625 | C172: 3.16227766
A173: 290 | B173: 162.25 | C173: 3.31662479
A174: 90 | B174: 53.75 | C174: 3.31662479
A175: 1030 | B175: 1095.75 | C175: 3.31662479
A176: 74 | B176: 101 | C176: 3.31662479
A177: 306 | B177: 261.25 | C177: 3.31662479
A178: 434 | B178: 445 | C178: 3.31662479
A179: 98 | B179: 107.5 | C179: 3.464101615
A180: 806 | B180: 854.375 | C180: 3.31662479
A181: 1418 | B181: 1025.5 | C181: 3.31662479
A182: 6 | B182: 5 | C182: 3.31662479
A183: 6 | B183: 1.5 | C183: 3.31662479
A184: 34 | B184: 19.875 | C184: 3.31662479
A185: 34 | B185: 19.875 | C185: 3.31662479
A186: 1774 | B186: 1689.875 | C186: 3.31662479
A187: 838 | B187: 877.625 | C187: 3.16227766
A188: 50 | B188: 28.25 | C188: 3.31662479
A189: 46 | B189: 29.5 | C189: 3.31662479
A190: 1122 | B190: 1157.25 | C190: 3.464101615
A191: 674 | B191: 765.25 | C191: 3.464101615
A192: 1022 | B192: 1093.25 | C192: 3.31662479
A193: 1782 | B193: 1251 | C193: 3.16227766
A194: 742 | B194: 497.5 | C194: 3.31662479
A195: 10 | B195: 7.25 | C195: 3.31662479
A196: 10 | B196: 7.25 | C196: 3.31662479
A197: 618 | B197: 665.75 | C197: 3.31662479
A198: 58 | B198: 68.125 | C198: 3.31662479
A199: 2234 | B199: 2051.375 | C199: 3.31662479
A200: 4666 | B200: 3349.125 | C200: 3.16227766
... 2 more rows

Sheet 工作表2
A1: Size | B1: H264 | C1: Size | D1: My | F1: XVID | R1: Size | S1: H264 | T1: Size | U1: My
C2: 2633.375 | D2: =U2/255 -> 0.09614081232 | E2: 242964 | F2: =W2/255 -> 0.01342883408 | R2: 8524 | S2: 59.48716541 | T2: 2633.375 | U2: 24.51590714 | V2: 242964 | W2: 3.424352689
C3: 2626.625 | D3: =U3/255 -> 0.09582790566 | E3: 242988 | F3: 0.01342630311 | R3: 15360 | S3: 36.74752405 | T3: 2626.625 | U3: 24.43611594 | V3: 242988 | W3: 3.423707292
A4: 16666 | B4: =S4/255 -> 0.1017822375 | C4: 2590.625 | D4: =U4/255 -> 0.09465283351 | E4: 242988 | F4: 0.01342630311 | R4: 16666 | S4: 25.95447055 | T4: 2590.625 | U4: 24.13647255 | V4: 242988 | W4: 3.423707292
A5: 16780 | B5: =S5/255 -> 0.07245028101 | C5: 2543.375 | D5: =U5/255 -> 0.09443138351 | E5: 242988 | F5: 0.01342630311 | R5: 16780 | S5: 18.47482166 | T5: 2543.375 | U5: 24.0800028 | V5: 242988 | W5: 3.423707292
A6: 17170 | B6: =S6/255 -> 0.06512424868 | C6: 2638.375 | D6: =U6/255 -> 0.09415323213 | E6: 243178 | F6: 0.01342143367 | R6: 17170 | S6: 16.60668341 | T6: 2638.375 | U6: 24.00907419 | V6: 243178 | W6: 3.422465587
A7: 17569 | B7: =S7/255 -> 0.05677500398 | C7: 2515.25 | D7: =U7/255 -> 0.09386898491 | E7: 243666 | F7: 0.01342882842 | R7: 17569 | S7: 14.47762601 | T7: 2515.25 | U7: 23.93659115 | V7: 243666 | W7: 3.424351247
A8: 19299 | B8: =S8/255 -> 0.04119030523 | C8: 2936.375 | D8: =U8/255 -> 0.09365950098 | E8: 243684 | F8: 0.01342973129 | R8: 19299 | S8: 10.50352783 | T8: 2936.375 | U8: 23.88317275 | V8: 243684 | W8: 3.424581479
A9: 21785 | B9: =S9/255 -> 0.03456548124 | C9: 2329.875 | D9: =U9/255 -> 0.09360949666 | E9: 243960 | F9: 0.0134322609 | R9: 21785 | S9: 8.814197715 | T9: 2329.875 | U9: 23.87042165 | V9: 243960 | W9: 3.42522653
A10: 24366 | B10: =S10/255 -> 0.02888924062 | C10: 2248 | D10: =U10/255 -> 0.09358428111 | E10: 244108 | F10: 0.01343447232 | R10: 24366 | S10: 7.366756358 | T10: 2248 | U10: 23.86399168 | V10: 244108 | W10: 3.425790442
A11: 26689 | B11: =S11/255 -> 0.02564232969 | C11: 2935.25 | D11: =U11/255 -> 0.09343080776 | E11: 244184 | F11: 0.01342467545 | R11: 26689 | S11: 6.538794071 | T11: 2935.25 | U11: 23.82485598 | V11: 244184 | W11: 3.42329224
A12: 28826 | B12: =S12/255 -> 0.02346066627 | C12: 2530.5 | D12: =U12/255 -> 0.09339168672 | E12: 244202 | F12: 0.0134343632 | R12: 28826 | S12: 5.982469898 | T12: 2530.5 | U12: 23.81488011 | V12: 244202 | W12: 3.425762615
A13: 30833 | B13: =S13/255 -> 0.02115826869 | C13: 2927.375 | D13: =U13/255 -> 0.09330074851 | E13: 244428 | F13: 0.01342587388 | R13: 30833 | S13: 5.395358516 | T13: 2927.375 | U13: 23.79169087 | V13: 244428 | W13: 3.42359784
A14: 33168 | B14: =S14/255 -> 0.01959113631 | C14: 2994.5 | D14: =U14/255 -> 0.0931435386 | E14: 244788 | F14: 0.01352164935 | R14: 33168 | S14: 4.99573976 | T14: 2994.5 | U14: 23.75160234 | V14: 244788 | W14: 3.448020584
A15: 35391 | B15: =S15/255 -> 0.01806728318 | C15: 2419.875 | D15: =U15/255 -> 0.09302576372 | E15: 245134 | F15: 0.01355133488 | R15: 35391 | S15: 4.607157211 | T15: 2419.875 | U15: 23.72156975 | V15: 245134 | W15: 3.455590393
A16: 37671 | B16: =S16/255 -> 0.01712455287 | C16: 2255.375 | D16: =U16/255 -> 0.09298442539 | E16: 245382 | F16: 0.0134861464 | R16: 37671 | S16: 4.366760981 | T16: 2255.375 | U16: 23.71102847 | V16: 245382 | W16: 3.438967333
A17: 39924 | B17: =S17/255 -> 0.0160080151 | C17: 2785 | D17: =U17/255 -> 0.09291808194 | E17: 245538 | F17: 0.01354545627 | R17: 39924 | S17: 4.082043851 | T17: 2785 | U17: 23.69411089 | V17: 245538 | W17: 3.454091348
A18: 42340 | B18: =S18/255 -> 0.01522374904 | C18: 2400.875 | D18: =U18/255 -> 0.09264607016 | E18: 245848 | F18: 0.01350982836 | R18: 42340 | S18: 3.882056006 | T18: 2400.875 | U18: 23.62474789 | V18: 245848 | W18: 3.445006232
A19: 44811 | B19: =S19/255 -> 0.01457907554 | C19: 2358.5 | D19: =U19/255 -> 0.09235306277 | E19: 246020 | F19: 0.01350951577 | R19: 44811 | S19: 3.717664262 | T19: 2358.5 | U19: 23.55003101 | V19: 246020 | W19: 3.444926522
A20: 47054 | B20: =S20/255 -> 0.01375817553 | C20: 2898.25 | D20: =U20/255 -> 0.09224253237 | E20: 246106 | F20: 0.01332836111 | R20: 47054 | S20: 3.508334761 | T20: 2898.25 | U20: 23.52184576 | V20: 246106 | W20: 3.398732083
A21: 49432 | B21: =S21/255 -> 0.01325151321 | C21: 2859.625 | D21: =U21/255 -> 0.09219753994 | E21: 246166 | F21: 0.01339476547 | R21: 49432 | S21: 3.379135868 | T21: 2859.625 | U21: 23.51037268 | V21: 246166 | W21: 3.415665195
A22: 51902 | B22: =S22/255 -> 0.0126992775 | C22: 2615.125 | D22: =U22/255 -> 0.09195693254 | E22: 246264 | F22: 0.01349706754 | R22: 51902 | S22: 3.238315761 | T22: 2615.125 | U22: 23.4490178 | V22: 246264 | W22: 3.441752222
A23: 54231 | B23: =S23/255 -> 0.01222182395 | C23: 3170.25 | D23: =U23/255 -> 0.09095257275 | E23: 246318 | F23: 0.01332171961 | R23: 54231 | S23: 3.116565107 | T23: 3170.25 | U23: 23.19290605 | V23: 246318 | W23: 3.397038502
A24: 56789 | B24: =S24/255 -> 0.01180198648 | C24: 2909.75 | D24: =U24/255 -> 0.09093792313 | E24: 246594 | F24: 0.01339326312 | R24: 56789 | S24: 3.009506554 | T24: 2909.75 | U24: 23.1891704 | V24: 246594 | W24: 3.415282096
A25: 59194 | B25: =S25/255 -> 0.01146924353 | C25: 3175.75 | D25: =U25/255 -> 0.09081267721 | E25: 246784 | F25: 0.01336415309 | R25: 59194 | S25: 2.924657099 | T25: 3175.75 | U25: 23.15723269 | V25: 246784 | W25: 3.407859037
A26: 61367 | B26: =S26/255 -> 0.01113493662 | C26: 2683.125 | D26: =U26/255 -> 0.09078752343 | E26: 247660 | F26: 0.01334482297 | R26: 61367 | S26: 2.839408838 | T26: 2683.125 | U26: 23.15081847 | V26: 247660 | W26: 3.402929857
A27: 64005 | B27: =S27/255 -> 0.0108851458 | C27: 2843.25 | D27: =U27/255 -> 0.09077410523 | E27: 247670 | F27: 0.01334097177 | R27: 64005 | S27: 2.775712178 | T27: 2843.25 | U27: 23.14739683 | V27: 247670 | W27: 3.401947801
A28: 66063 | B28: =S28/255 -> 0.01053271882 | C28: 2405.125 | D28: =U28/255 -> 0.09074055106 | E28: 248528 | F28: 0.01338020891 | R28: 66063 | S28: 2.685843298 | T28: 2405.125 | U28: 23.13884052 | V28: 248528 | W28: 3.411953273
A29: 68467 | B29: =S29/255 -> 0.01031971129 | C29: 3051.625 | D29: =U29/255 -> 0.0906356142 | E29: 248604 | F29: 0.01328695826 | R29: 68467 | S29: 2.631526378 | T29: 3051.625 | U29: 23.11208162 | V29: 248604 | W29: 3.388174356
A30: 70980 | B30: =S30/255 -> 0.009982005153 | C30: 2550 | D30: =U30/255 -> 0.09042158637 | E30: 248886 | F30: 0.01333831663 | R30: 70980 | S30: 2.545411314 | T30: 2550 | U30: 23.05750452 | V30: 248886 | W30: 3.401270742
A31: 73459 | B31: =S31/255 -> 0.009801799393 | C31: 2778.125 | D31: =U31/255 -> 0.09026737452 | E31: 248942 | F31: 0.01331693734 | R31: 73459 | S31: 2.499458845 | T31: 2778.125 | U31: 23.0181805 | V31: 248942 | W31: 3.395819022
A32: 75686 | B32: =S32/255 -> 0.009566430206 | C32: 3203.625 | D32: =U32/255 -> 0.09017244126 | E32: 249530 | F32: 0.01328465058 | R32: 75686 | S32: 2.439439703 | T32: 3203.625 | U32: 22.99397252 | V32: 249530 | W32: 3.387585897
A33: 78563 | B33: =S33/255 -> 0.009313956198 | C33: 2904.25 | D33: =U33/255 -> 0.08992683896 | E33: 250170 | F33: 0.01328030793 | R33: 78563 | S33: 2.37505883 | T33: 2904.25 | U33: 22.93134393 | V33: 250170 | W33: 3.386478523
A34: 80676 | B34: =S34/255 -> 0.009174526391 | C34: 3039.75 | D34: =U34/255 -> 0.08991371568 | E34: 250624 | F34: 0.01318262627 | R34: 80676 | S34: 2.33950423 | T34: 3039.75 | U34: 22.9279975 | V34: 250624 | W34: 3.361569698
A35: 83049 | B35: =S35/255 -> 0.008944269779 | C35: 2911.75 | D35: =U35/255 -> 0.08985569631 | E35: 251144 | F35: 0.01326862616 | R35: 83049 | S35: 2.280788794 | T35: 2911.75 | U35: 22.91320256 | V35: 251144 | W35: 3.38349967
A36: 85405 | B36: =S36/255 -> 0.008818716873 | C36: 2959.5 | D36: =U36/255 -> 0.08980060677 | E36: 251510 | F36: 0.01302951164 | R36: 85405 | S36: 2.248772803 | T36: 2959.5 | U36: 22.89915473 | V36: 251510 | W36: 3.322525467
A37: 87791 | B37: =S37/255 -> 0.008645485378 | C37: 3149.875 | D37: =U37/255 -> 0.08977983347 | E37: 251638 | F37: 0.01299461946 | R37: 87791 | S37: 2.204598772 | T37: 3149.875 | U37: 22.89385754 | V37: 251638 | W37: 3.313627962
A38: 90284 | B38: =S38/255 -> 0.008488876967 | C38: 2922.25 | D38: =U38/255 -> 0.08977601745 | E38: 252312 | F38: 0.01319660085 | R38: 90284 | S38: 2.164663627 | T38: 2922.25 | U38: 22.89288445 | V38: 252312 | W38: 3.365133216
A39: 92172 | B39: =S39/255 -> 0.008350354392 | C39: 3010.625 | D39: =U39/255 -> 0.08952337494 | E39: 253072 | F39: 0.01314143735 | R39: 92172 | S39: 2.12934037 | T39: 3010.625 | U39: 22.82846061 | V39: 253072 | W39: 3.351066525
A40: 94823 | B40: =S40/255 -> 0.008199163664 | C40: 2638.75 | D40: =U40/255 -> 0.08947531349 | E40: 253580 | F40: 0.01301410087 | R40: 94823 | S40: 2.090786734 | T40: 2638.75 | U40: 22.81620494 | V40: 253580 | W40: 3.318595721
A41: 97142 | B41: =S41/255 -> 0.008076026883 | C41: 3149.125 | D41: =U41/255 -> 0.08938379778 | E41: 253652 | F41: 0.01307584243 | R41: 97142 | S41: 2.059386855 | T41: 3149.125 | U41: 22.79286843 | V41: 253652 | W41: 3.334339821
A42: 99640 | B42: =S42/255 -> 0.007958752081 | C42: 2960.875 | D42: =U42/255 -> 0.08920560551 | E42: 253818 | F42: 0.0130280289 | R42: 99640 | S42: 2.029481781 | T42: 2960.875 | U42: 22.74742941 | V42: 253818 | W42: 3.322147368
A43: 101944 | B43: =S43/255 -> 0.007844710811 | C43: 2977.125 | D43: =U43/255 -> 0.08910655076 | E43: 254602 | F43: 0.01293776688 | R43: 101944 | S43: 2.000401257 | T43: 2977.125 | U43: 22.72217044 | V43: 254602 | W43: 3.299130555
A44: 104296 | B44: =S44/255 -> 0.007741059968 | C44: 2875.125 | D44: =U44/255 -> 0.08901935983 | E44: 254678 | F44: 0.01308410046 | R44: 104296 | S44: 1.973970292 | T44: 2875.125 | U44: 22.69993676 | V44: 254678 | W44: 3.336445618
A45: 107051 | B45: =S45/255 -> 0.00760577944 | C45: 2710.375 | D45: =U45/255 -> 0.08839283591 | E45: 254688 | F45: 0.01314903533 | R45: 107051 | S45: 1.939473757 | T45: 2710.375 | U45: 22.54017316 | V45: 254688 | W45: 3.353004008
A46: 109488 | B46: =S46/255 -> 0.00750545977 | C46: 2954.75 | D46: =U46/255 -> 0.08809907732 | E46: 254818 | F46: 0.01303181353 | R46: 109488 | S46: 1.913892241 | T46: 2954.75 | U46: 22.46526472 | V46: 254818 | W46: 3.323112449
A47: 111572 | B47: =S47/255 -> 0.007396519672 | C47: 2936.5 | D47: =U47/255 -> 0.08792564143 | E47: 255198 | F47: 0.01295299285 | R47: 111572 | S47: 1.886112516 | T47: 2936.5 | U47: 22.42103856 | V47: 255198 | W47: 3.303013176
A48: 113958 | B48: =S48/255 -> 0.007296958244 | C48: 3248.875 | D48: =U48/255 -> 0.08768199436 | E48: 256720 | F48: 0.01311373625 | R48: 113958 | S48: 1.860724352 | T48: 3248.875 | U48: 22.35890856 | V48: 256720 | W48: 3.344002744
A49: 116330 | B49: =S49/255 -> 0.007214708021 | C49: 2649 | D49: =U49/255 -> 0.08740936596 | E49: 257508 | F49: 0.01292393136 | R49: 116330 | S49: 1.839750545 | T49: 2649 | U49: 22.28938832 | V49: 257508 | W49: 3.295602497
A50: 118819 | B50: =S50/255 -> 0.007142663138 | C50: 2973.625 | D50: =U50/255 -> 0.08715379395 | E50: 258842 | F50: 0.01288050311 | R50: 118819 | S50: 1.8213791 | T50: 2973.625 | U50: 22.22421746 | V50: 258842 | W50: 3.284528294
A51: 121469 | B51: =S51/255 -> 0.007100463877 | C51: 3070.625 | D51: =U51/255 -> 0.0871441845 | E51: 259342 | F51: 0.01316978211 | R51: 121469 | S51: 1.810618289 | T51: 3070.625 | U51: 22.22176705 | V51: 259342 | W51: 3.358294438
A52: 123612 | B52: =S52/255 -> 0.006994046745 | C52: 3526 | D52: =U52/255 -> 0.08713195275 | E52: 259540 | F52: 0.01282301158 | R52: 123612 | S52: 1.78348192 | T52: 3526 | U52: 22.21864795 | V52: 259540 | W52: 3.269867952
A53: 125965 | B53: =S53/255 -> 0.006880667133 | C53: 2886.5 | D53: =U53/255 -> 0.08679578144 | E53: 259930 | F53: 0.0128160262 | R53: 125965 | S53: 1.754570119 | T53: 2886.5 | U53: 22.13292427 | V53: 259930 | W53: 3.268086682
A54: 128297 | B54: =S54/255 -> 0.006806089831 | C54: 2905.25 | D54: =U54/255 -> 0.08670494977 | E54: 260438 | F54: 0.01277525646 | R54: 128297 | S54: 1.735552907 | T54: 2905.25 | U54: 22.10976219 | V54: 260438 | W54: 3.257690396
A55: 130950 | B55: =S55/255 -> 0.006754243196 | C55: 2894 | D55: =U55/255 -> 0.08660743023 | E55: 261770 | F55: 0.01266951574 | R55: 130950 | S55: 1.722332015 | T55: 2894 | U55: 22.08489471 | V55: 261770 | W55: 3.230726513
A56: 133358 | B56: =S56/255 -> 0.006681667606 | C56: 3190.75 | D56: =U56/255 -> 0.08653047925 | E56: 262876 | F56: 0.01285137557 | R56: 133358 | S56: 1.703825239 | T56: 3190.75 | U56: 22.06527221 | V56: 262876 | W56: 3.27710077
A57: 135768 | B57: =S57/255 -> 0.00660274023 | C57: 2798.25 | D57: =U57/255 -> 0.08650540044 | E57: 264356 | F57: 0.01258963079 | R57: 135768 | S57: 1.683698759 | T57: 2798.25 | U57: 22.05887711 | V57: 264356 | W57: 3.210355851
A58: 138257 | B58: =S58/255 -> 0.006546460892 | C58: 3780 | D58: =U58/255 -> 0.08638694779 | E58: 264636 | F58: 0.01258306273 | R58: 138257 | S58: 1.669347527 | T58: 3780 | U58: 22.02867169 | V58: 264636 | W58: 3.208680996
A59: 140525 | B59: =S59/255 -> 0.006476265981 | C59: 3600.25 | D59: =U59/255 -> 0.08630891815 | E59: 265030 | F59: 0.01245433896 | R59: 140525 | S59: 1.651447825 | T59: 3600.25 | U59: 22.00877413 | V59: 265030 | W59: 3.175856435
A60: 142921 | B60: =S60/255 -> 0.006410985971 | C60: 3204.375 | D60: =U60/255 -> 0.08622375451 | E60: 265060 | F60: 0.01246533637 | R60: 142921 | S60: 1.634801423 | T60: 3204.375 | U60: 21.9870574 | V60: 265060 | W60: 3.178660774
A61: 145287 | B61: =S61/255 -> 0.006354170869 | C61: 2997.75 | D61: =U61/255 -> 0.08604034511 | E61: 266764 | F61: 0.01255685252 | R61: 145287 | S61: 1.620313572 | T61: 2997.75 | U61: 21.940288 | V61: 266764 | W61: 3.201997392
A62: 148025 | B62: =S62/255 -> 0.00627732677 | C62: 3203.25 | D62: =U62/255 -> 0.0859810402 | E62: 266880 | F62: 0.0124031544 | R62: 148025 | S62: 1.600718326 | T62: 3203.25 | U62: 21.92516525 | V62: 266880 | W62: 3.162804372
A63: 150307 | B63: =S63/255 -> 0.006240859159 | C63: 3707.375 | D63: =U63/255 -> 0.08597971201 | E63: 268848 | F63: 0.01256906709 | R63: 150307 | S63: 1.591419086 | T63: 3707.375 | U63: 21.92482656 | V63: 268848 | W63: 3.205112108
A64: 152723 | B64: =S64/255 -> 0.006180526418 | C64: 4061.375 | D64: =U64/255 -> 0.08576782436 | E64: 269810 | F64: 0.01249811868 | R64: 152723 | S64: 1.576034237 | T64: 4061.375 | U64: 21.87079521 | V64: 269810 | W64: 3.187020263
A65: 155247 | B65: =S65/255 -> 0.006121140724 | C65: 3163.125 | D65: =U65/255 -> 0.08559544619 | E65: 270918 | F65: 0.01229486547 | R65: 155247 | S65: 1.560890885 | T65: 3163.125 | U65: 21.82683878 | V65: 270918 | W65: 3.135190694
A66: 157617 | B66: =S66/255 -> 0.006070750857 | C66: 3137 | D66: =U66/255 -> 0.08537591724 | E66: 272032 | F66: =W66/255 -> 0.01252793203 | R66: 157617 | S66: 1.548041469 | T66: 3137 | U66: 21.7708589 | V66: 272032 | W66: 3.194622668
A67: 159905 | B67: =S67/255 -> 0.006003117442 | C67: 3937 | D67: =U67/255 -> 0.0851750419 | E67: 272956 | F67: 0.01223340219 | R67: 159905 | S67: 1.530794948 | T67: 3937 | U67: 21.71963568 | V67: 272956 | W67: 3.119517558
A68: 162326 | B68: =S68/255 -> 0.005987977766 | C68: 3236.75 | D68: =U68/255 -> 0.08516073939 | E68: 274256 | F68: 0.01225207712 | R68: 162326 | S68: 1.52693433 | T68: 3236.75 | U68: 21.71598854 | V68: 274256 | W68: 3.124279666
A69: 164570 | B69: =S69/255 -> 0.005924554174 | C69: 3991.875 | D69: =U69/255 -> 0.08479341451 | E69: 274802 | F69: 0.01195680593 | R69: 164570 | S69: 1.510761314 | T69: 3991.875 | U69: 21.6223207 | V69: 274802 | W69: 3.048985512
A70: 167181 | B70: =S70/255 -> 0.005873550657 | C70: 4184.625 | D70: =U70/255 -> 0.08475255227 | E70: 275470 | F70: 0.01181049544 | R70: 167181 | S70: 1.497755418 | T70: 4184.625 | U70: 21.61190083 | V70: 275470 | W70: 3.011676337
A71: 169288 | B71: =S71/255 -> 0.005846199905 | C71: 4039.25 | D71: =U71/255 -> 0.08458395562 | E71: 279232 | F71: 0.01188400512 | R71: 169288 | S71: 1.490780976 | T71: 4039.25 | U71: 21.56890868 | V71: 279232 | W71: 3.030421306
A72: 172138 | B72: =S72/255 -> 0.005768217847 | C72: 3547.75 | D72: =U72/255 -> 0.08440059094 | E72: 281192 | F72: 0.01173577816 | R72: 172138 | S72: 1.470895551 | T72: 3547.75 | U72: 21.52215069 | V72: 281192 | W72: 2.99262343
A73: 174293 | B73: =S73/255 -> 0.005730461449 | C73: 3740.625 | D73: =U73/255 -> 0.08430717875 | E73: 284572 | F73: 0.01188342816 | R73: 174293 | S73: 1.461267669 | T73: 3740.625 | U73: 21.49833058 | V73: 284572 | W73: 3.03027418
A74: 177022 | B74: =S74/255 -> 0.00568208451 | C74: 4265.5 | D74: =U74/255 -> 0.08425388295 | E74: 287084 | F74: 0.0117797249 | R74: 177022 | S74: 1.44893155 | T74: 4265.5 | U74: 21.48474015 | V74: 287084 | W74: 3.003829849
A75: 179304 | B75: =S75/255 -> 0.005653705819 | C75: 3261.625 | D75: =U75/255 -> 0.08399460133 | E75: 289614 | F75: 0.01162758777 | R75: 179304 | S75: 1.441694984 | T75: 3261.625 | U75: 21.41862334 | V75: 289614 | W75: 2.96503488
A76: 181961 | B76: =S76/255 -> 0.005612517942 | C76: 3689.375 | D76: =U76/255 -> 0.08394654872 | E76: 290484 | F76: 0.01179860816 | R76: 181961 | S76: 1.431192075 | T76: 3689.375 | U76: 21.40636992 | V76: 290484 | W76: 3.008645082
A77: 184236 | B77: =S77/255 -> 0.005574783418 | C77: 3690.75 | D77: =U77/255 -> 0.0839456418 | E77: 291284 | F77: 0.01168102323 | R77: 184236 | S77: 1.421569772 | T77: 3690.75 | U77: 21.40613866 | V77: 291284 | W77: 2.978660923
A78: 186461 | B78: =S78/255 -> 0.00554914325 | C78: 4321.25 | D78: =U78/255 -> 0.08384809096 | E78: 293402 | F78: 0.01151193557 | R78: 186461 | S78: 1.415031529 | T78: 4321.25 | U78: 21.3812632 | V78: 293402 | W78: 2.935543571
A79: 189329 | B79: =S79/255 -> 0.00549267685 | C79: 4038.375 | D79: =U79/255 -> 0.0837972288 | E79: 295154 | F79: 0.01152557442 | R79: 189329 | S79: 1.400632597 | T79: 4038.375 | U79: 21.36829334 | V79: 295154 | W79: 2.939021477
A80: 191517 | B80: =S80/255 -> 0.005474862607 | C80: 3824.75 | D80: =U80/255 -> 0.08361896758 | E80: 295374 | F80: 0.01080688567 | R80: 191517 | S80: 1.396089965 | T80: 3824.75 | U80: 21.32283673 | V80: 295374 | W80: 2.755755845
A81: 194044 | B81: =S81/255 -> 0.005444564388 | C81: 3901.5 | D81: =U81/255 -> 0.08360758599 | E81: 296396 | F81: 0.01144343936 | R81: 194044 | S81: 1.388363919 | T81: 3901.5 | U81: 21.31993443 | V81: 296396 | W81: 2.918077036
A82: 196760 | B82: =S82/255 -> 0.005388492223 | C82: 3825.375 | D82: =U82/255 -> 0.08360485417 | E82: 298270 | F82: 0.01092821011 | R82: 196760 | S82: 1.374065517 | T82: 3825.375 | U82: 21.31923781 | V82: 298270 | W82: 2.786693578
A83: 198775 | B83: =S83/255 -> 0.005380342786 | C83: 4260.5 | D83: =U83/255 -> 0.08335177431 | E83: 298960 | F83: 0.01057375757 | R83: 198775 | S83: 1.371987411 | T83: 4260.5 | U83: 21.25470245 | V83: 298960 | W83: 2.69630818
A84: 201428 | B84: =S84/255 -> 0.005337356886 | C84: 3865 | D84: =U84/255 -> 0.08310342055 | E84: 301900 | F84: 0.01052867448 | R84: 201428 | S84: 1.361026006 | T84: 3865 | U84: 21.19137224 | V84: 301900 | W84: 2.684811993
A85: 203847 | B85: =S85/255 -> 0.005301617732 | C85: 3392.875 | D85: =U85/255 -> 0.08296405441 | E85: 303392 | F85: 0.01044682299 | R85: 203847 | S85: 1.351912522 | T85: 3392.875 | U85: 21.15583387 | V85: 303392 | W85: 2.663939861
A86: 206170 | B86: =S86/255 -> 0.005270518276 | C86: 4283.625 | D86: =U86/255 -> 0.08280422891 | E86: 303486 | F86: 0.01080367848 | R86: 206170 | S86: 1.34398216 | T86: 4283.625 | U86: 21.11507837 | V86: 303486 | W86: 2.754938013
A87: 208702 | B87: =S87/255 -> 0.005252658304 | C87: 4647.25 | D87: =U87/255 -> 0.08280055113 | E87: 306748 | F87: 0.01054725777 | R87: 208702 | S87: 1.339427867 | T87: 4647.25 | U87: 21.11414054 | V87: 306748 | W87: 2.689550732
A88: 211084 | B88: =S88/255 -> 0.005220154452 | C88: 4121.25 | D88: =U88/255 -> 0.08273340299 | E88: 308726 | F88: 0.01056654924 | R88: 211084 | S88: 1.331139385 | T88: 4121.25 | U88: 21.09701776 | V88: 308726 | W88: 2.694470056
A89: 213464 | B89: =S89/255 -> 0.005182620957 | C89: 4087.375 | D89: =U89/255 -> 0.08255607234 | E89: 310520 | F89: 0.01059295175 | R89: 213464 | S89: 1.321568344 | T89: 4087.375 | U89: 21.05179845 | V89: 310520 | W89: 2.701202697
A90: 216178 | B90: =S90/255 -> 0.005159010762 | C90: 4282.5 | D90: =U90/255 -> 0.08235848776 | E90: 312524 | F90: 0.01049178896 | R90: 216178 | S90: 1.315547744 | T90: 4282.5 | U90: 21.00141438 | V90: 312524 | W90: 2.675406185
A91: 218507 | B91: =S91/255 -> 0.005141911955 | C91: 4406.625 | D91: =U91/255 -> 0.08196653391 | E91: 312824 | F91: 0.01033325987 | R91: 218507 | S91: 1.311187549 | T91: 4406.625 | U91: 20.90146615 | V91: 312824 | W91: 2.634981266
A92: 221213 | B92: =S92/255 -> 0.005097356681 | C92: 3589.25 | D92: =U92/255 -> 0.08189498352 | E92: 316394 | F92: 0.01042273642 | R92: 221213 | S92: 1.299825954 | T92: 3589.25 | U92: 20.8832208 | V92: 316394 | W92: 2.657797786
A93: 223765 | B93: =S93/255 -> 0.005067877488 | C93: 4448.25 | D93: =U93/255 -> 0.08176054137 | E93: 317174 | F93: 0.009766217786 | R93: 223765 | S93: 1.292308759 | T93: 4448.25 | U93: 20.84893805 | V93: 317174 | W93: 2.490385535
A94: 226154 | B94: =S94/255 -> 0.005037622323 | C94: 3319.625 | D94: =U94/255 -> 0.08170837975 | E94: 317792 | F94: 0.01054356728 | R94: 226154 | S94: 1.284593692 | T94: 3319.625 | U94: 20.83563684 | V94: 317792 | W94: 2.688609657
A95: 228379 | B95: =S95/255 -> 0.005031250436 | C95: 4052.25 | D95: =U95/255 -> 0.0816995276 | E95: 318904 | F95: 0.009614492051 | R95: 228379 | S95: 1.282968861 | T95: 4052.25 | U95: 20.83337954 | V95: 318904 | W95: 2.451695473
A96: 231160 | B96: =S96/255 -> 0.005009788051 | C96: 4339.125 | D96: =U96/255 -> 0.08148772177 | E96: 319466 | F96: 0.009512613186 | R96: 231160 | S96: 1.277495953 | T96: 4339.125 | U96: 20.77936905 | V96: 319466 | W96: 2.425716362
A97: 233194 | B97: =S97/255 -> 0.004992706412 | C97: 3977.375 | D97: =U97/255 -> 0.08145127678 | E97: 321260 | F97: 0.009545563778 | R97: 233194 | S97: 1.273140135 | T97: 3977.375 | U97: 20.77007558 | V97: 321260 | W97: 2.434118763
A98: 235979 | B98: =S98/255 -> 0.004952317382 | C98: 4607.875 | D98: =U98/255 -> 0.08138535404 | E98: 323308 | F98: 0.009552494791 | R98: 235979 | S98: 1.262840932 | T98: 4607.875 | U98: 20.75326528 | V98: 323308 | W98: 2.435886172
A99: 238422 | B99: =S99/255 -> 0.004937410896 | C99: 4427.125 | D99: =U99/255 -> 0.08109672268 | E99: 325904 | F99: 0.009624042366 | R99: 238422 | S99: 1.259039778 | T99: 4427.125 | U99: 20.67966428 | V99: 325904 | W99: 2.454130803
A100: 240902 | B100: =S100/255 -> 0.004910848073 | C100: 4546.625 | D100: =U100/255 -> 0.08106714564 | E100: 327310 | F100: 0.009715310728 | R100: 240902 | S100: 1.252266259 | T100: 4546.625 | U100: 20.67212214 | V100: 327310 | W100: 2.477404236
A101: 243434 | B101: =S101/255 -> 0.00487902913 | C101: 4683.25 | D101: =U101/255 -> 0.08097223846 | E101: 329570 | F101: 0.009717293364 | R101: 243434 | S101: 1.244152428 | T101: 4683.25 | U101: 20.64792081 | V101: 329570 | W101: 2.477909808
A102: 245956 | B102: =S102/255 -> 0.004850764792 | C102: 4037.5 | D102: =U102/255 -> 0.08093838326 | E102: 331632 | F102: 0.009734911498 | R102: 245956 | S102: 1.236945022 | T102: 4037.5 | U102: 20.63928773 | V102: 331632 | W102: 2.482402432
A103: 248530 | B103: =S103/255 -> 0.004838757626 | C103: 4892.5 | D103: =U103/255 -> 0.08086451095 | E103: 332924 | F103: 0.009657811929 | R103: 248530 | S103: 1.233883195 | T103: 4892.5 | U103: 20.62045029 | V103: 332924 | W103: 2.462742042
A104: 250931 | B104: =S104/255 -> 0.004825509219 | C104: 4123.875 | D104: =U104/255 -> 0.08037108313 | E104: 334882 | F104: 0.009621578555 | R104: 250931 | S104: 1.230504851 | T104: 4123.875 | U104: 20.4946262 | V104: 334882 | W104: 2.453502532
A105: 253250 | B105: =S105/255 -> 0.004796234257 | C105: 4678.125 | D105: =U105/255 -> 0.08025638302 | E105: 337090 | F105: 0.00980438578 | R105: 253250 | S105: 1.223039735 | T105: 4678.125 | U105: 20.46537767 | V105: 337090 | W105: 2.500118374
A106: 255752 | B106: =S106/255 -> 0.004772918852 | C106: 5073.25 | D106: =U106/255 -> 0.08022080218 | E106: 337446 | F106: 0.00933283954 | R106: 255752 | S106: 1.217094307 | T106: 5073.25 | U106: 20.45630455 | V106: 337446 | W106: 2.379874083
A107: 258121 | B107: =S107/255 -> 0.004765340225 | C107: 3820.25 | D107: =U107/255 -> 0.07985840206 | E107: 337890 | F107: 0.009152150045 | R107: 258121 | S107: 1.215161757 | T107: 3820.25 | U107: 20.36389253 | V107: 337890 | W107: 2.333798262
A108: 260232 | B108: =S108/255 -> 0.004744147162 | C108: 4319.75 | D108: =U108/255 -> 0.07985649536 | E108: 341284 | F108: 0.009164135328 | R108: 260232 | S108: 1.209757526 | T108: 4319.75 | U108: 20.36340632 | V108: 341284 | W108: 2.336854509
A109: 263184 | B109: =S109/255 -> 0.004729260472 | C109: 5217.625 | D109: =U109/255 -> 0.07980022715 | E109: 343392 | F109: 0.009076969868 | R109: 263184 | S109: 1.20596142 | T109: 5217.625 | U109: 20.34905792 | V109: 343392 | W109: 2.314627316
A110: 265506 | B110: =S110/255 -> 0.004704045897 | C110: 4394 | D110: =U110/255 -> 0.07968804924 | E110: 344450 | F110: 0.009179266278 | R110: 265506 | S110: 1.199531704 | T110: 4394 | U110: 20.32045256 | V110: 344450 | W110: 2.340712901
A111: 268214 | B111: =S111/255 -> 0.00468424947 | C111: 4313.5 | D111: =U111/255 -> 0.07950727783 | E111: 347306 | F111: 0.009166581234 | R111: 268214 | S111: 1.194483615 | T111: 4313.5 | U111: 20.27435585 | V111: 347306 | W111: 2.337478215
A112: 270468 | B112: =S112/255 -> 0.004669947656 | C112: 4592.25 | D112: =U112/255 -> 0.07926272652 | E112: 348060 | F112: 0.009009380628 | R112: 270468 | S112: 1.190836652 | T112: 4592.25 | U112: 20.21199526 | V112: 348060 | W112: 2.29739206
A113: 273049 | B113: =S113/255 -> 0.004651835138 | C113: 4605.25 | D113: =U113/255 -> 0.07883124622 | E113: 351218 | F113: 0.008871905965 | R113: 273049 | S113: 1.18621796 | T113: 4605.25 | U113: 20.10196779 | V113: 351218 | W113: 2.262336021
A114: 275796 | B114: =S114/255 -> 0.004627349075 | C114: 5903.75 | D114: =U114/255 -> 0.07875829748 | E114: 351744 | F114: 0.009071659461 | R114: 275796 | S114: 1.179974014 | T114: 5903.75 | U114: 20.08336586 | V114: 351744 | W114: 2.313273163
A115: 277926 | B115: =S115/255 -> 0.004614041609 | C115: 4338.875 | D115: =U115/255 -> 0.07871188432 | E115: 354852 | F115: 0.008845953758 | R115: 277926 | S115: 1.17658061 | T115: 4338.875 | U115: 20.0715305 | V115: 354852 | W115: 2.255718208
A116: 280595 | B116: =S116/255 -> 0.004596996403 | C116: 4814.125 | D116: =U116/255 -> 0.07829438629 | E116: 355580 | F116: 0.009207342243 | R116: 280595 | S116: 1.172234083 | T116: 4814.125 | U116: 19.9650685 | V116: 355580 | W116: 2.347872272
A117: 282688 | B117: =S117/255 -> 0.004595178237 | C117: 4852.375 | D117: =U117/255 -> 0.07805237492 | E117: 358420 | F117: 0.00865409813 | R117: 282688 | S117: 1.171770451 | T117: 4852.375 | U117: 19.90335561 | V117: 358420 | W117: 2.206795023
A118: 285520 | B118: =S118/255 -> 0.004573371198 | C118: 5729.125 | D118: =U118/255 -> 0.07793377388 | E118: 359048 | F118: 0.008686565125 | R118: 285520 | S118: 1.166209655 | T118: 5729.125 | U118: 19.87311234 | V118: 359048 | W118: 2.215074107
A119: 287899 | B119: =S119/255 -> 0.004552914208 | C119: 4986.875 | D119: =U119/255 -> 0.07768083917 | E119: 360786 | F119: 0.008786585747 | R119: 287899 | S119: 1.160993123 | T119: 4986.875 | U119: 19.80861399 | V119: 360786 | W119: 2.240579365
A120: 290634 | B120: =S120/255 -> 0.00452645609 | C120: 5323.875 | D120: =U120/255 -> 0.07756461466 | E120: 362846 | F120: 0.00866068522 | R120: 290634 | S120: 1.154246303 | T120: 5323.875 | U120: 19.77897674 | V120: 362846 | W120: 2.208474731
A121: 293120 | B121: =S121/255 -> 0.004514323718 | C121: 5324.375 | D121: =U121/255 -> 0.07751454034 | E121: 365976 | F121: 0.008601062227 | R121: 293120 | S121: 1.151152548 | T121: 5324.375 | U121: 19.76620779 | V121: 365976 | W121: 2.193270868
A122: 295350 | B122: =S122/255 -> 0.004506656916 | C122: 5433.875 | D122: =U122/255 -> 0.07750913824 | E122: 367188 | F122: 0.008776011713 | R122: 295350 | S122: 1.149197514 | T122: 5433.875 | U122: 19.76483025 | V122: 367188 | W122: 2.237882987
A123: 297829 | B123: =S123/255 -> 0.004479647626 | C123: 5896.25 | D123: =U123/255 -> 0.07739363958 | E123: 370178 | F123: 0.008756008216 | R123: 297829 | S123: 1.142310145 | T123: 5896.25 | U123: 19.73537809 | V123: 370178 | W123: 2.232782095
A124: 300940 | B124: =S124/255 -> 0.004469025665 | C124: 5590.375 | D124: =U124/255 -> 0.07739216402 | E124: 371916 | F124: 0.008759832337 | R124: 300940 | S124: 1.139601544 | T124: 5590.375 | U124: 19.73500182 | V124: 371916 | W124: 2.233757246
A125: 303258 | B125: =S125/255 -> 0.004450827316 | C125: 4784.125 | D125: =U125/255 -> 0.07737199514 | E125: 374384 | F125: 0.008585079738 | R125: 303258 | S125: 1.134960966 | T125: 4784.125 | U125: 19.72985876 | V125: 374384 | W125: 2.189195333
A126: 305623 | B126: =S126/255 -> 0.004440152204 | C126: 5659.375 | D126: =U126/255 -> 0.07707080426 | E126: 374524 | F126: 0.008426000971 | R126: 305623 | S126: 1.132238812 | T126: 5659.375 | U126: 19.65305509 | V126: 374524 | W126: 2.148630247
A127: 308114 | B127: =S127/255 -> 0.004422807233 | C127: 5928.875 | D127: =U127/255 -> 0.07697195875 | E127: 377736 | F127: 0.008363744707 | R127: 308114 | S127: 1.127815845 | T127: 5928.875 | U127: 19.62784948 | V127: 377736 | W127: 2.1327549
A128: 310982 | B128: =S128/255 -> 0.0044077603 | C128: 5281.75 | D128: =U128/255 -> 0.07680808995 | E128: 378596 | F128: 0.008127205338 | R128: 310982 | S128: 1.123978877 | T128: 5281.75 | U128: 19.58606294 | V128: 378596 | W128: 2.072437361
A129: 313261 | B129: =S129/255 -> 0.004396815147 | C129: 5334.125 | D129: =U129/255 -> 0.07675851395 | E129: 380158 | F129: 0.008200282395 | R129: 313261 | S129: 1.121187862 | T129: 5334.125 | U129: 19.57342106 | V129: 380158 | W129: 2.091072011
A130: 315693 | B130: =S130/255 -> 0.00438460477 | C130: 5186.125 | D130: =U130/255 -> 0.07663989739 | E130: 380278 | F130: =W130/255 -> 0.008234303466 | R130: 315693 | S130: 1.118074216 | T130: 5186.125 | U130: 19.54317384 | V130: 380278 | W130: 2.099747384
A131: 318632 | B131: =S131/255 -> 0.004373459893 | C131: 5606.125 | D131: =U131/255 -> 0.07627246111 | E131: 382510 | F131: 0.008051231099 | R131: 318632 | S131: 1.115232273 | T131: 5606.125 | U131: 19.44947758 | V131: 382510 | W131: 2.05306393
A132: 320932 | B132: =S132/255 -> 0.004356218766 | C132: 5889.5 | D132: =U132/255 -> 0.07613609025 | E132: 385372 | F132: 0.007985563184 | R132: 320932 | S132: 1.110835785 | T132: 5889.5 | U132: 19.41470301 | V132: 385372 | W132: 2.036318612
A133: 323405 | B133: =S133/255 -> 0.00434664757 | C133: 4823.125 | D133: =U133/255 -> 0.07595839199 | E133: 387442 | F133: 0.007907931314 | R133: 323405 | S133: 1.10839513 | T133: 4823.125 | U133: 19.36938996 | V133: 387442 | W133: 2.016522485
A134: 325776 | B134: =S134/255 -> 0.004327685687 | C134: 6101.375 | D134: =U134/255 -> 0.07589120899 | E134: 389440 | F134: 0.008269628832 | R134: 325776 | S134: 1.10355985 | T134: 6101.375 | U134: 19.35225829 | V134: 389440 | W134: 2.108755352
A135: 328352 | B135: =S135/255 -> 0.004313779522 | C135: 5420.5 | D135: =U135/255 -> 0.07563094031 | E135: 392004 | F135: 0.007987890927 | R135: 328352 | S135: 1.100013778 | T135: 5420.5 | U135: 19.28588978 | V135: 392004 | W135: 2.036912186
A136: 330907 | B136: =S136/255 -> 0.004298637337 | C136: 6471.75 | D136: =U136/255 -> 0.07535360929 | E136: 393762 | F136: 0.007761904744 | R136: 330907 | S136: 1.096152521 | T136: 6471.75 | U136: 19.21517037 | V136: 393762 | W136: 1.97928571
A137: 332954 | B137: =S137/255 -> 0.004292028509 | C137: 5765.625 | D137: =U137/255 -> 0.07529650388 | E137: 394730 | F137: 0.007640587653 | R137: 332954 | S137: 1.09446727 | T137: 5765.625 | U137: 19.20060849 | V137: 394730 | W137: 1.948349852
A138: 335766 | B138: =S138/255 -> 0.004280448747 | C138: 5262 | D138: =U138/255 -> 0.07497530056 | E138: 395726 | F138: 0.007475495451 | R138: 335766 | S138: 1.091514431 | T138: 5262 | U138: 19.11870164 | V138: 395726 | W138: 1.90625134
A139: 338651 | B139: =S139/255 -> 0.004267724433 | C139: 6755.375 | D139: =U139/255 -> 0.07486809603 | E139: 399342 | F139: 0.007677569456 | R139: 338651 | S139: 1.088269731 | T139: 6755.375 | U139: 19.09136449 | V139: 399342 | W139: 1.957780211
A140: 340788 | B140: =S140/255 -> 0.004258345894 | C140: 6203.875 | D140: =U140/255 -> 0.07484063512 | E140: 401376 | F140: 0.007693214789 | R140: 340788 | S140: 1.085878203 | T140: 6203.875 | U140: 19.08436196 | V140: 401376 | W140: 1.961769771
A141: 343450 | B141: =S141/255 -> 0.004244341879 | C141: 5531.375 | D141: =U141/255 -> 0.074783138 | E141: 403734 | F141: 0.007572938908 | R141: 343450 | S141: 1.082307179 | T141: 5531.375 | U141: 19.06970019 | V141: 403734 | W141: 1.931099422
A142: 345932 | B142: =S142/255 -> 0.0042267489 | C142: 5803.625 | D142: =U142/255 -> 0.07448783254 | E142: 405072 | F142: 0.007464536766 | R142: 345932 | S142: 1.07782097 | T142: 5803.625 | U142: 18.9943973 | V142: 405072 | W142: 1.903456875
A143: 348657 | B143: =S143/255 -> 0.004220075999 | C143: 6185.5 | D143: =U143/255 -> 0.07447965549 | E143: 407430 | F143: 0.007624127065 | R143: 348657 | S143: 1.07611938 | T143: 6185.5 | U143: 18.99231215 | V143: 407430 | W143: 1.944152402
A144: 351596 | B144: =S144/255 -> 0.004211242189 | C144: 6344 | D144: =U144/255 -> 0.07444131358 | E144: 409526 | F144: 0.00769453115 | R144: 351596 | S144: 1.073866758 | T144: 6344 | U144: 18.98253496 | V144: 409526 | W144: 1.962105443
A145: 353797 | B145: =S145/255 -> 0.004196822876 | C145: 6234 | D145: =U145/255 -> 0.07440857954 | E145: 409560 | F145: 0.007628028905 | R145: 353797 | S145: 1.070189833 | T145: 6234 | U145: 18.97418778 | V145: 409560 | W145: 1.945147371
A146: 356274 | B146: =S146/255 -> 0.004191690578 | C146: 5978.125 | D146: =U146/255 -> 0.074111268 | E146: 412734 | F146: 0.007620043085 | R146: 356274 | S146: 1.068881097 | T146: 5978.125 | U146: 18.89837334 | V146: 412734 | W146: 1.943110987
A147: 358551 | B147: =S147/255 -> 0.004176774841 | C147: 6068 | D147: =U147/255 -> 0.07393900029 | E147: 414700 | F147: 0.007555590377 | R147: 358551 | S147: 1.065077584 | T147: 6068 | U147: 18.85444507 | V147: 414700 | W147: 1.926675546
A148: 361217 | B148: =S148/255 -> 0.004168335174 | C148: 6478.625 | D148: =U148/255 -> 0.07383183778 | E148: 416568 | F148: 0.007642849644 | R148: 361217 | S148: 1.062925469 | T148: 6478.625 | U148: 18.82711863 | V148: 416568 | W148: 1.948926659
A149: 363504 | B149: =S149/255 -> 0.004157818206 | C149: 6284 | D149: =U149/255 -> 0.07363824212 | E149: 419098 | F149: 0.007782985592 | R149: 363504 | S149: 1.060243643 | T149: 6284 | U149: 18.77775174 | V149: 419098 | W149: 1.984661326
A150: 366047 | B150: =S150/255 -> 0.004142955609 | C150: 5935 | D150: =U150/255 -> 0.07340888329 | E150: 420908 | F150: 0.007510347631 | R150: 366047 | S150: 1.05645368 | T150: 5935 | U150: 18.71926524 | V150: 420908 | W150: 1.915138646
A151: 368629 | B151: =S151/255 -> 0.004134829048 | C151: 5729.125 | D151: =U151/255 -> 0.07333054061 | E151: 423638 | F151: 0.007601236635 | R151: 368629 | S151: 1.054381407 | T151: 5729.125 | U151: 18.69928786 | V151: 423638 | W151: 1.938315342
A152: 370865 | B152: =S152/255 -> 0.004117444707 | C152: 6117.25 | D152: =U152/255 -> 0.07304343381 | E152: 425168 | F152: 0.007738332797 | R152: 370865 | S152: 1.0499484 | T152: 6117.25 | U152: 18.62607562 | V152: 425168 | W152: 1.973274863
A153: 373973 | B153: =S153/255 -> 0.004116805688 | C153: 7253.625 | D153: =U153/255 -> 0.07252934089 | E153: 426930 | F153: 0.007572748216 | R153: 373973 | S153: 1.04978545 | T153: 7253.625 | U153: 18.49498193 | V153: 426930 | W153: 1.931050795
A154: 376455 | B154: =S154/255 -> 0.004102736099 | C154: 6304.375 | D154: =U154/255 -> 0.07252199279 | E154: 427568 | F154: 0.007541691362 | R154: 376455 | S154: 1.046197705 | T154: 6304.375 | U154: 18.49310816 | V154: 427568 | W154: 1.923131297
A155: 378485 | B155: =S155/255 -> 0.004097855667 | C155: 6331.375 | D155: =U155/255 -> 0.07233489049 | E155: 430564 | F155: 0.007785508728 | R155: 378485 | S155: 1.044953195 | T155: 6331.375 | U155: 18.44539708 | V155: 430564 | W155: 1.985304726
A156: 381192 | B156: =S156/255 -> 0.004085188924 | C156: 6181.375 | D156: =U156/255 -> 0.07212091733 | E156: 431564 | F156: 0.007592026171 | R156: 381192 | S156: 1.041723176 | T156: 6181.375 | U156: 18.39083392 | V156: 431564 | W156: 1.935966674
A157: 383712 | B157: =S157/255 -> 0.00407369262 | C157: 6733.625 | D157: =U157/255 -> 0.07202162083 | E157: 434428 | F157: 0.007662616029 | R157: 383712 | S157: 1.038791618 | T157: 6733.625 | U157: 18.36551331 | V157: 434428 | W157: 1.953967087
A158: 386408 | B158: =S158/255 -> 0.004064609025 | C158: 6626 | D158: =U158/255 -> 0.0715523367 | E158: 435048 | F158: 0.007748338643 | R158: 386408 | S158: 1.036475301 | T158: 6626 | U158: 18.24584586 | V158: 435048 | W158: 1.975826354
A159: 388954 | B159: =S159/255 -> 0.004049406752 | C159: 5763.125 | D159: =U159/255 -> 0.07093574804 | E159: 438098 | F159: 0.007410099894 | R159: 388954 | S159: 1.032598722 | T159: 5763.125 | U159: 18.08861575 | V159: 438098 | W159: 1.889575473
A160: 391386 | B160: =S160/255 -> 0.004041325657 | C160: 6632.5 | D160: =U160/255 -> 0.07088958304 | E160: 439268 | F160: 0.007609399679 | R160: 391386 | S160: 1.030538042 | T160: 6632.5 | U160: 18.07684367 | V160: 439268 | W160: 1.940396918
A161: 393851 | B161: =S161/255 -> 0.004041747107 | C161: 6439.625 | D161: =U161/255 -> 0.07074283637 | E161: 442718 | F161: 0.007594149037 | R161: 393851 | S161: 1.030645512 | T161: 6439.625 | U161: 18.03942327 | V161: 442718 | W161: 1.936508004
A162: 396065 | B162: =S162/255 -> 0.004030469419 | C162: 6760.75 | D162: =U162/255 -> 0.07065776683 | E162: 443330 | F162: 0.007566149832 | R162: 396065 | S162: 1.027769702 | T162: 6760.75 | U162: 18.01773054 | V162: 443330 | W162: 1.929368207
A163: 398774 | B163: =S163/255 -> 0.00402291476 | C163: 6611.125 | D163: =U163/255 -> 0.07048461948 | E163: 445742 | F163: 0.007290981989 | R163: 398774 | S163: 1.025843264 | T163: 6611.125 | U163: 17.97357797 | V163: 445742 | W163: 1.859200407
A164: 401418 | B164: =S164/255 -> 0.004007176067 | C164: 7030.5 | D164: =U164/255 -> 0.07046301367 | E164: 447978 | F164: 0.007550790028 | R164: 401418 | S164: 1.021829897 | T164: 7030.5 | U164: 17.96806849 | V164: 447978 | W164: 1.925451457
A165: 404083 | B165: =S165/255 -> 0.003999438704 | C165: 6651 | D165: =U165/255 -> 0.07037165592 | E165: 448088 | F165: 0.00747454957 | R165: 404083 | S165: 1.019856869 | T165: 6651 | U165: 17.94477226 | V165: 448088 | W165: 1.90601014
A166: 406224 | B166: =S166/255 -> 0.003992131658 | C166: 7273 | D166: =U166/255 -> 0.0698656909 | E166: 451976 | F166: 0.007587067606 | R166: 406224 | S166: 1.017993573 | T166: 7273 | U166: 17.81575118 | V166: 451976 | W166: 1.934702239
A167: 409073 | B167: =S167/255 -> 0.003986037216 | C167: 6672 | D167: =U167/255 -> 0.06984225856 | E167: 454420 | F167: 0.007238661389 | R167: 409073 | S167: 1.01643949 | T167: 6672 | U167: 17.80977593 | V167: 454420 | W167: 1.845858654
A168: 411907 | B168: =S168/255 -> 0.00397152183 | C168: 6696.5 | D168: =U168/255 -> 0.06960312627 | E168: 454426 | F168: 0.00739449258 | R168: 411907 | S168: 1.012738067 | T168: 6696.5 | U168: 17.7487972 | V168: 454426 | W168: 1.885595608
A169: 414100 | B169: =S169/255 -> 0.003971015228 | C169: 7276.875 | D169: =U169/255 -> 0.06946023817 | E169: 458264 | F169: 0.007532464629 | R169: 414100 | S169: 1.012608883 | T169: 7276.875 | U169: 17.71236073 | V169: 458264 | W169: 1.92077848
A170: 416652 | B170: =S170/255 -> 0.003962293356 | C170: 6856.5 | D170: =U170/255 -> 0.06931266212 | E170: 460682 | F170: 0.007130590663 | R170: 416652 | S170: 1.010384806 | T170: 6856.5 | U170: 17.67472884 | V170: 460682 | W170: 1.818300619
A171: 419405 | B171: =S171/255 -> 0.003949450681 | C171: 7449.125 | D171: =U171/255 -> 0.06883209912 | E171: 462060 | F171: 0.006959753258 | R171: 419405 | S171: 1.007109924 | T171: 7449.125 | U171: 17.55218527 | V171: 462060 | W171: 1.774737081
A172: 421709 | B172: =S172/255 -> 0.003939789841 | C172: 7289 | D172: =U172/255 -> 0.06862273606 | E172: 464788 | F172: 0.00728646148 | R172: 421709 | S172: 1.004646409 | T172: 7289 | U172: 17.4987977 | V172: 464788 | W172: 1.858047677
A173: 423691 | B173: =S173/255 -> 0.003933151401 | C173: 7938.5 | D173: =U173/255 -> 0.06818142771 | E173: 465080 | F173: 0.007188416105 | R173: 423691 | S173: 1.002953607 | T173: 7938.5 | U173: 17.38626407 | V173: 465080 | W173: 1.833046107
A174: 426867 | B174: =S174/255 -> 0.003922408503 | C174: 7058.625 | D174: =U174/255 -> 0.06809763034 | E174: 466368 | F174: 0.00721371252 | R174: 426867 | S174: 1.000214168 | T174: 7058.625 | U174: 17.36489574 | V174: 466368 | W174: 1.839496693
A175: 429150 | B175: =S175/255 -> 0.003915107964 | C175: 7240.75 | D175: =U175/255 -> 0.06807750362 | E175: 472236 | F175: 0.006679811453 | R175: 429150 | S175: 0.9983525308 | T175: 7240.75 | U175: 17.35976342 | V175: 472236 | W175: 1.70335192
C176: 7980.125 | D176: =U176/255 -> 0.06806576029 | E176: 473916 | F176: 0.006742189972 | T176: 7980.125 | U176: 17.35676887 | V176: 473916 | W176: 1.719258443
C177: 7883.875 | D177: =U177/255 -> 0.06767933696 | E177: 474430 | F177: 0.006520560194 | T177: 7883.875 | U177: 17.25823092 | V177: 474430 | W177: 1.662742849
C178: 9063.25 | D178: =U178/255 -> 0.06738566454 | E178: 478202 | F178: 0.006884796031 | T178: 9063.25 | U178: 17.18334446 | V178: 478202 | W178: 1.755622988
C179: 8828.625 | D179: =U179/255 -> 0.06737380062 | E179: 478484 | F179: 0.006787969764 | T179: 8828.625 | U179: 17.18031916 | V179: 478484 | W179: 1.73093229
C180: 6863.25 | D180: =U180/255 -> 0.06722334304 | E180: 480386 | F180: 0.006883882802 | T180: 6863.25 | U180: 17.14195248 | V180: 480386 | W180: 1.755390114
C181: 9150.25 | D181: =U181/255 -> 0.06720295448 | E181: 482626 | F181: 0.006623562842 | T181: 9150.25 | U181: 17.13675339 | V181: 482626 | W181: 1.689008525
C182: 8991.75 | D182: =U182/255 -> 0.06718652586 | E182: 483794 | F182: 0.006875569832 | T182: 8991.75 | U182: 17.1325641 | V182: 483794 | W182: 1.753270307
C183: 8909.5 | D183: =U183/255 -> 0.06708616744 | E183: 487622 | F183: 0.006369941286 | T183: 8909.5 | U183: 17.1069727 | V183: 487622 | W183: 1.624335028
C184: 7143.5 | D184: =U184/255 -> 0.06707765559 | E184: 489768 | F184: 0.006574381056 | T184: 7143.5 | U184: 17.10480217 | V184: 489768 | W184: 1.676467169
C185: 7591.75 | D185: =U185/255 -> 0.06701236213 | E185: 491950 | F185: 0.006393229812 | T185: 7591.75 | U185: 17.08815234 | V185: 491950 | W185: 1.630273602
C186: 7610.125 | D186: =U186/255 -> 0.06669977594 | E186: 492212 | F186: 0.006280756824 | T186: 7610.125 | U186: 17.00844287 | V186: 492212 | W186: 1.60159299
C187: 7970 | D187: =U187/255 -> 0.06655923373 | E187: 494984 | F187: 0.006509325508 | T187: 7970 | U187: 16.9726046 | V187: 494984 | W187: 1.659878005
C188: 8868.25 | D188: =U188/255 -> 0.06649285873 | E188: 497322 | F188: 0.006452653904 | T188: 8868.25 | U188: 16.95567898 | V188: 497322 | W188: 1.645426746
C189: 9162.125 | D189: =U189/255 -> 0.066311133 | E189: 501510 | F189: 0.006515821542 | T189: 9162.125 | U189: 16.90933892 | V189: 501510 | W189: 1.661534493
C190: 7802.75 | D190: =U190/255 -> 0.06613984405 | E190: 501656 | F190: 0.006164701955 | T190: 7802.75 | U190: 16.86566023 | V190: 501656 | W190: 1.571998998
C191: 9042.5 | D191: =U191/255 -> 0.06606152431 | E191: 504386 | F191: 0.006288700693 | T191: 9042.5 | U191: 16.8456887 | V191: 504386 | W191: 1.603618677
C192: 9577.875 | D192: =U192/255 -> 0.06537397108 | E192: 507326 | F192: 0.006083495455 | T192: 9577.875 | U192: 16.67036263 | V192: 507326 | W192: 1.551291341
C193: 9993.375 | D193: =U193/255 -> 0.06536931266 | E193: 509478 | F193: 0.006213255836 | T193: 9993.375 | U193: 16.66917473 | V193: 509478 | W193: 1.584380238
C194: 9448.875 | D194: =U194/255 -> 0.06530580855 | E194: 509596 | F194: =W194/255 -> 0.006327446682 | T194: 9448.875 | U194: 16.65298118 | V194: 509596 | W194: 1.613498904
C195: 8347.625 | D195: =U195/255 -> 0.06483018716 | E195: 512182 | F195: 0.006237505819 | T195: 8347.625 | U195: 16.53169773 | V195: 512182 | W195: 1.590563984
C196: 9954.5 | D196: =U196/255 -> 0.06431850771 | E196: 515170 | F196: 0.006152750181 | T196: 9954.5 | U196: 16.40121947 | V196: 515170 | W196: 1.568951296
C197: 9869.125 | D197: =U197/255 -> 0.06416978461 | E197: 516802 | F197: 0.006048032348 | T197: 9869.125 | U197: 16.36329508 | V197: 516802 | W197: 1.542248249
C198: 8852.625 | D198: =U198/255 -> 0.06413952382 | E198: 517992 | F198: 0.00594709866 | T198: 8852.625 | U198: 16.35557857 | V198: 517992 | W198: 1.516510158
C199: 9979.625 | D199: =U199/255 -> 0.06413714982 | E199: 521778 | F199: 0.005980180686 | T199: 9979.625 | U199: 16.3549732 | V199: 521778 | W199: 1.524946075
C200: 7806 | D200: =U200/255 -> 0.06407658312 | E200: 522960 | F200: 0.005934335424 | T200: 7806 | U200: 16.3395287 | V200: 522960 | W200: 1.513255533
... 194 more rows
